fUST/lending_fUST_20250702
["ID","MTS","AMOUNT","RATE_DAILY","PERIOD"]
[369031587,1751439039133,-161.94574817,0.00016438,2]
[369031588,1751439039142,-460.0,0.00016438,2]
[369031589,1751439039152,-523.33,0.00016438,2]
[369031590,1751439039162,-166.0,0.00016438,2]
[369031591,1751439039172,-17225.12927896,0.00016673,2]
[369031592,1751439039181,-244.38,0.000167,3]
[369031593,1751439039192,-733.16,0.000167,3]
[369031594,1751439039201,-460.0,0.00016709,2]
[369031595,1751439039210,-460.0,0.00016709,2]
[369031596,1751439039220,-460.0,0.00016709,2]
[369031597,1751439039230,-429.34754869,0.00016709,2]
[369031598,1751439039239,-154.65323437,0.00016709,2]
[369031599,1751439039251,-305.34676563,0.00016709,2]
[369031600,1751439039260,-460.0,0.00016709,2]
[369031601,1751439039269,-243.34539534,0.00016709,2]
[369031929,1751439043332,-460.0,0.00016438,2]
[369031931,1751439043341,-833.36460466,0.00016709,2]
[369031933,1751439043351,-695.26,0.00016709,2]
[369031934,1751439043366,-460.0,0.00016709,2]
[369031936,1751439043376,-578.47779644,0.00016709,2]
[369031939,1751439043388,-102.99220356,0.00016709,2]
[369031941,1751439043397,-460.0,0.00016709,2]
[369031943,1751439043406,-1348.14,0.00016709,2]
[369031945,1751439043416,-460.0,0.00016709,2]
[369031947,1751439043425,-768.27779644,0.00016709,2]
[369032206,1751439046028,-795.34,0.00016438,2]
[369032209,1751439046039,-124.66,0.00016709,2]
[369032211,1751439046051,-116.80220356,0.00016709,2]
[369032213,1751439046060,-1610.11,0.00016709,2]
[369032215,1751439046070,-460.0,0.00016709,2]
[369032217,1751439046079,-785.84,0.00016709,2]
[369032219,1751439046088,-446.07440955,0.0001671,2]
[369032221,1751439046098,-464.01835825,0.0001671,2]
[369032223,1751439046107,-341.34768112,0.0001671,2]
[369032225,1751439046122,-118.65231888,0.0001671,2]
[369032227,1751439046132,-460.0,0.0001671,2]
[369032229,1751439046141,-442.57191412,0.0001671,2]
[369032231,1751439046150,-460.0,0.0001671,2]
[369032233,1751439046161,-460.0,0.0001671,2]
[369032235,1751439046170,-412.97054501,0.0001671,2]
[369032237,1751439046179,-460.0,0.0001671,2]
[369032239,1751439046189,-463.98769077,0.0001671,2]
[369032241,1751439046198,-516.88,0.0001671,2]
[369032243,1751439046207,-460.0,0.0001671,2]
[369032245,1751439046216,-460.0,0.0001671,2]
[369032247,1751439046226,-460.0,0.0001671,2]
[369032249,1751439046235,-460.0,0.0001671,2]
[369032251,1751439046244,-460.0,0.0001671,2]
[369032253,1751439046253,-298.99011329,0.0001671,2]
[369032255,1751439046262,-416.71633068,0.0001671,2]
[369032257,1751439046271,-460.0,0.0001671,2]
[369032259,1751439046281,-460.0,0.0001671,2]
[369032261,1751439046290,-460.0,0.0001671,2]
[369032262,1751439046298,-460.0,0.0001671,2]
[369032264,1751439046308,-460.0,0.0001671,2]
[369032266,1751439046318,-460.0,0.0001671,2]
[369032269,1751439046327,-460.0,0.0001671,2]
[369032271,1751439046336,-460.0,0.0001671,2]
[369032272,1751439046346,-500.0,0.0001671,2]
[369032275,1751439046355,-460.0,0.0001671,2]
[369032276,1751439046365,-629.79222965,0.00016711,2]
[369032279,1751439046374,-354.61117247,0.00016712,2]
[369032281,1751439046384,-173.57706665,0.00016712,2]
[369032283,1751439046393,-460.0,0.00016712,2]
[369032285,1751439046403,-460.0,0.00016712,2]
[369032286,1751439046412,-460.0,0.00016712,2]
[369032289,1751439046421,-460.0,0.00016712,2]
[369032291,1751439046431,-460.0,0.00016712,2]
[369032293,1751439046440,-460.0,0.00016712,2]
[369032295,1751439046449,-460.0,0.00016712,2]
[369032297,1751439046459,-460.0,0.00016712,2]
[369032299,1751439046468,-460.0,0.00016712,2]
[369032300,1751439046477,-501.91,0.00016712,2]
[369032302,1751439046486,-460.0,0.00016712,2]
[369032305,1751439046496,-460.0,0.00016712,2]
[369032307,1751439046506,-460.0,0.00016712,2]
[369032309,1751439046515,-460.0,0.00016712,2]
[369032311,1751439046525,-460.0,0.00016712,2]
[369032313,1751439046536,-463.13689648,0.00016712,2]
[369032315,1751439046547,-460.0,0.00016712,2]
[369032317,1751439046556,-460.0,0.00016712,2]
[369032319,1751439046566,-460.0,0.00016712,2]
[369032321,1751439046575,-460.0,0.00016712,2]
[369032323,1751439046584,-460.0,0.00016712,2]
[369032325,1751439046593,-460.0,0.00016712,2]
[369032327,1751439046603,-474.74003494,0.00016712,2]
[369032329,1751439046612,-460.0,0.00016712,2]
[369032331,1751439046621,-460.0,0.00016712,2]
[369032333,1751439046630,-460.0,0.00016712,2]
[369032335,1751439046640,-460.0,0.00016712,2]
[369032337,1751439046649,-460.0,0.00016712,2]
[369032339,1751439046658,-460.0,0.00016712,2]
[369032341,1751439046667,-2466.55,0.00016712,2]
[369032343,1751439046676,-460.0,0.00016712,2]
[369032345,1751439046686,-460.0,0.00016712,2]
[369032347,1751439046695,-953.33,0.00016712,2]
[369032349,1751439046707,-460.0,0.00016712,2]
[369032351,1751439046716,-460.0,0.00016712,2]
[369032353,1751439046725,-460.0,0.00016712,2]
[369032355,1751439046734,-460.0,0.00016712,2]
[369032357,1751439046745,-755.62,0.00016712,2]
[369032359,1751439046754,-1411.31,0.00016712,2]
[369032361,1751439046763,-2440.16,0.00016712,2]
[369032363,1751439046773,-496.88,0.00016712,2]
[369032365,1751439046782,-460.0,0.00016712,2]
[369032367,1751439046792,-460.0,0.00016712,2]
[369032369,1751439046801,-648.56,0.00016712,2]
[369032371,1751439046811,-485.7,0.00016712,2]
[369032373,1751439046820,-460.0,0.00016712,2]
[369032375,1751439046829,-460.0,0.00016712,2]
[369032377,1751439046839,-460.0,0.00016712,2]
[369032379,1751439046848,-460.0,0.00016712,2]
[369032381,1751439046858,-1844.43,0.00016712,2]
[369032383,1751439046868,-460.0,0.00016712,2]
[369032385,1751439046877,-582.39,0.00016712,2]
[369032387,1751439046887,-460.0,0.00016712,2]
[369032389,1751439046897,-460.0,0.00016712,2]
[369032391,1751439046906,-2175.98,0.00016712,2]
[369032393,1751439046916,-533.85,0.00016712,2]
[369032396,1751439046925,-808.21,0.00016712,2]
[369032397,1751439046934,-3340.84,0.00016712,2]
[369032400,1751439046944,-460.0,0.00016712,2]
[369032402,1751439046953,-460.0,0.00016712,2]
[369032404,1751439046962,-488.06,0.00016712,2]
[369032406,1751439046971,-460.0,0.00016712,2]
[369032408,1751439046980,-541.27,0.00016712,2]
[369032410,1751439046990,-460.0,0.00016712,2]
[369032412,1751439046999,-443.9572966,0.00016712,2]
[369032414,1751439047008,-4849.39,0.00016712,2]
[369032416,1751439047017,-460.0,0.00016712,2]
[369032417,1751439047027,-486.07,0.00016712,2]
[369032420,1751439047037,-3400.74,0.00016712,2]
[369032422,1751439047046,-375.9188003,0.00016712,2]
[369032424,1751439047055,-460.0,0.00016712,2]
[369032425,1751439047064,-460.0,0.00016712,2]
[369032428,1751439047073,-460.0,0.00016712,2]
[369032430,1751439047082,-1168.18,0.00016712,2]
[369032431,1751439047091,-460.0,0.00016712,2]
[369032434,1751439047101,-529.94,0.00016712,2]
[369032436,1751439047111,-464.57,0.00016712,2]
[369032438,1751439047123,-460.0,0.00016712,2]
[369032440,1751439047132,-460.0,0.00016712,2]
[369032442,1751439047141,-916.16,0.00016712,2]
[369032444,1751439047150,-215.41864506,0.00016712,2]
[369032446,1751439047160,-1674.93,0.00016712,2]
[369032448,1751439047170,-600.99,0.00016712,2]
[369032450,1751439047181,-460.0,0.00016712,2]
[369032452,1751439047192,-460.0,0.00016712,2]
[369032454,1751439047203,-460.0,0.00016712,2]
[369032456,1751439047212,-460.0,0.00016712,2]
[369032458,1751439047222,-460.0,0.00016712,2]
[369032460,1751439047231,-460.0,0.00016712,2]
[369032461,1751439047241,-523.33,0.00016712,2]
[369032464,1751439047250,-460.0,0.00016712,2]
[369032465,1751439047259,-795.34,0.00016712,2]
[369032467,1751439047268,-500.0,0.00016773,2]
[369032469,1751439047278,-502.45500882,0.00016773,2]
[369032471,1751439047287,-500.0,0.00016773,2]
[369032473,1751439047297,-500.04943759,0.00016773,2]
[369032475,1751439047306,-500.0,0.00016773,2]
[369032478,1751439047315,-500.0,0.00016773,2]
[369032479,1751439047325,-201.50629347,0.00016773,2]
[369032481,1751439047335,-500.0,0.00016773,2]
[369032483,1751439047345,-247.42449142,0.00016773,2]
[369032485,1751439047356,-500.0,0.00016773,2]
[369032487,1751439047366,-500.0,0.00016773,2]
[369032489,1751439047376,-500.0,0.00016773,2]
[369032491,1751439047385,-500.0,0.00016773,2]
[369032494,1751439047395,-500.0,0.00016773,2]
[369032495,1751439047403,-500.0,0.00016773,2]
[369032497,1751439047412,-500.0,0.00016773,2]
[369032499,1751439047421,-500.0,0.00016773,2]
[369032501,1751439047430,-500.0,0.00016773,2]
[369032503,1751439047439,-1328.35073396,0.00016884,2]
[369032505,1751439047448,-460.0,0.00016983,2]
[369032507,1751439047457,-601.23,0.00016983,2]
[369032509,1751439047466,-460.0,0.00016983,2]
[369032511,1751439047476,-1076.71,0.00016983,2]
[369032524,1751439047703,-695.26,0.00016983,2]
[369032525,1751439047714,-460.0,0.00016983,2]
[369032526,1751439047723,-681.47,0.00016983,2]
[369032527,1751439047734,-460.0,0.00016983,2]
[369032528,1751439047743,-1348.14,0.00016983,2]
[369032530,1751439047752,-460.0,0.00016983,2]
[369032532,1751439047762,-1009.74,0.00016983,2]
[369032534,1751439047771,-1610.11,0.00016983,2]
[369032536,1751439047781,-785.84,0.00016983,2]
[369032538,1751439047790,-460.0,0.00016984,2]
[369032540,1751439047800,-460.0,0.00016984,2]
[369032542,1751439047810,-460.0,0.00016984,2]
[369032544,1751439047819,-460.0,0.00016984,2]
[369032546,1751439047828,-460.0,0.00016984,2]
[369032548,1751439047838,-516.88,0.00016984,2]
[369032550,1751439047847,-460.0,0.00016984,2]
[369032552,1751439047856,-460.0,0.00016984,2]
[369032554,1751439047865,-460.0,0.00016984,2]
[369032556,1751439047875,-460.0,0.00016984,2]
[369032558,1751439047884,-460.0,0.00016984,2]
[369032560,1751439047894,-460.0,0.00016984,2]
[369032562,1751439047903,-460.0,0.00016984,2]
[369032564,1751439047912,-460.0,0.00016984,2]
[369032565,1751439047922,-460.0,0.00016984,2]
[369032567,1751439047931,-460.0,0.00016984,2]
[369032569,1751439047940,-460.0,0.00016984,2]
[369032571,1751439047950,-460.0,0.00016986,2]
[369032573,1751439047960,-335.29247067,0.00016986,2]
[369032575,1751439047969,-460.0,0.00016986,2]
[369032577,1751439047978,-460.0,0.00016986,2]
[369032579,1751439047987,-460.0,0.00016986,2]
[369032581,1751439047996,-460.0,0.00016986,2]
[369032583,1751439048008,-460.0,0.00016986,2]
[369032585,1751439048017,-501.91,0.00016986,2]
[369032587,1751439048027,-460.0,0.00016986,2]
[369032589,1751439048036,-460.0,0.00016986,2]
[369032591,1751439048046,-460.0,0.00016986,2]
[369032593,1751439048055,-460.0,0.00016986,2]
[369032595,1751439048065,-460.0,0.00016986,2]
[369032597,1751439048075,-342.43080968,0.00016986,2]
[369032599,1751439048085,-460.0,0.00016986,2]
[369032601,1751439048094,-166.1545027,0.00016986,2]
[369032603,1751439048104,-460.0,0.00016986,2]
[369032605,1751439048113,-345.7321433,0.00016986,2]
[369032607,1751439048125,-460.0,0.00016986,2]
[369032609,1751439048135,-460.0,0.00016986,2]
[369032611,1751439048144,-2466.55,0.00016986,2]
[369032613,1751439048153,-460.0,0.00016986,2]
[369032615,1751439048163,-460.0,0.00016986,2]
[369032617,1751439048172,-953.33,0.00016986,2]
[369032619,1751439048181,-460.0,0.00016986,2]
[369032621,1751439048192,-460.0,0.00016986,2]
[369032623,1751439048201,-460.0,0.00016986,2]
[369032625,1751439048210,-755.62,0.00016986,2]
[369032627,1751439048219,-1411.31,0.00016986,2]
[369032629,1751439048229,-2440.16,0.00016986,2]
[369032631,1751439048238,-496.88,0.00016986,2]
[369032633,1751439048247,-460.0,0.00016986,2]
[369032635,1751439048257,-460.0,0.00016986,2]
[369032637,1751439048267,-648.56,0.00016986,2]
[369032639,1751439048277,-485.7,0.00016986,2]
[369032641,1751439048286,-460.0,0.00016986,2]
[369032643,1751439048295,-460.0,0.00016986,2]
[369032645,1751439048305,-460.0,0.00016986,2]
[369032648,1751439048315,-460.0,0.00016986,2]
[369032650,1751439048324,-1844.43,0.00016986,2]
[369032652,1751439048334,-551.44734605,0.00016986,2]
[369032654,1751439048343,-582.39,0.00016986,2]
[369032656,1751439048353,-460.0,0.00016986,2]
[369032658,1751439048362,-460.0,0.00016986,2]
[369032660,1751439048372,-2175.98,0.00016986,2]
[369032662,1751439048381,-533.85,0.00016986,2]
[369032664,1751439048391,-808.21,0.00016986,2]
[369032666,1751439048400,-3340.84,0.00016986,2]
[369032668,1751439048411,-460.0,0.00016986,2]
[369032670,1751439048420,-296.48066166,0.00016986,2]
[369032672,1751439048429,-488.06,0.00016986,2]
[369032674,1751439048440,-460.0,0.00016986,2]
[369032676,1751439048449,-541.27,0.00016986,2]
[369032678,1751439048459,-460.0,0.00016986,2]
[369032680,1751439048469,-4849.39,0.00016986,2]
[369032682,1751439048479,-460.0,0.00016986,2]
[369032684,1751439048489,-486.07,0.00016986,2]
[369032686,1751439048499,-3400.74,0.00016986,2]
[369032688,1751439048514,-460.0,0.00016986,2]
[369032690,1751439048523,-460.0,0.00016986,2]
[369032692,1751439048534,-1168.18,0.00016986,2]
[369032694,1751439048544,-460.0,0.00016986,2]
[369032697,1751439048554,-460.0,0.00016986,2]
[369032699,1751439048564,-529.94,0.00016986,2]
[369032700,1751439048573,-464.57,0.00016986,2]
[369032702,1751439048583,-460.0,0.00016986,2]
[369032705,1751439048593,-460.0,0.00016986,2]
[369032706,1751439048602,-916.16,0.00016986,2]
[369032707,1751439048611,-1674.93,0.00016986,2]
[369032708,1751439048621,-600.99,0.00016986,2]
[369032709,1751439048631,-460.0,0.00016986,2]
[369032710,1751439048640,-460.0,0.00016986,2]
[369032711,1751439048650,-460.0,0.00016986,2]
[369032712,1751439048660,-460.0,0.00016986,2]
[369032713,1751439048670,-460.0,0.00016986,2]
[369032714,1751439048680,-523.33,0.00016986,2]
[369032715,1751439048690,-460.0,0.00016986,2]
[369032716,1751439048699,-795.34,0.00016986,2]
[369032717,1751439048710,-3000.0,0.00017022,2]
[369032718,1751439048719,-6333.0,0.000171,2]
[369032719,1751439048728,-49916.72842274,0.000171,2]
[369032720,1751439048739,-460.0,0.00017257,2]
[369032721,1751439048750,-1076.71,0.00017257,2]
[369032722,1751439048760,-695.26,0.00017257,2]
[369032723,1751439048769,-460.0,0.00017257,2]
[369032724,1751439048779,-681.47,0.00017257,2]
[369032725,1751439048789,-572.18385069,0.00017257,2]
[369032726,1751439048799,-1348.14,0.00017257,2]
[369032727,1751439048808,-460.0,0.00017257,2]
[369032728,1751439048818,-1009.74,0.00017257,2]
[369032729,1751439048827,-1610.11,0.00017257,2]
[369032730,1751439048837,-785.84,0.00017257,2]
[369032731,1751439048847,-460.0,0.00017258,2]
[369032732,1751439048857,-460.0,0.00017258,2]
[369032733,1751439048867,-460.0,0.00017258,2]
[369032734,1751439048876,-460.0,0.00017258,2]
[369032735,1751439048886,-516.88,0.00017258,2]
[369032736,1751439048896,-460.0,0.00017258,2]
[369032737,1751439048906,-460.0,0.00017258,2]
[369032738,1751439048915,-460.0,0.00017258,2]
[369032739,1751439048926,-460.0,0.00017258,2]
[369032740,1751439048935,-460.0,0.00017258,2]
[369032741,1751439048945,-460.0,0.00017258,2]
[369032742,1751439048955,-267.38057906,0.00017258,2]
[369032743,1751439048966,-460.0,0.00017258,2]
[369032744,1751439048975,-460.0,0.00017258,2]
[369032745,1751439048985,-460.0,0.0001726,2]
[369032746,1751439048995,-460.0,0.0001726,2]
[369032747,1751439049004,-460.0,0.0001726,2]
[369032748,1751439049014,-460.0,0.0001726,2]
[369032749,1751439049023,-501.91,0.0001726,2]
[369032750,1751439049033,-460.0,0.0001726,2]
[369032751,1751439049042,-460.0,0.0001726,2]
[369032752,1751439049052,-460.0,0.0001726,2]
[369032753,1751439049062,-157.23177785,0.0001726,2]
[369032754,1751439049071,-460.0,0.0001726,2]
[369032755,1751439049080,-460.0,0.0001726,2]
[369032756,1751439049091,-460.0,0.0001726,2]
[369032757,1751439049101,-460.0,0.0001726,2]
[369032758,1751439049111,-2466.55,0.0001726,2]
[369032759,1751439049124,-460.0,0.0001726,2]
[369032760,1751439049134,-460.0,0.0001726,2]
[369032761,1751439049145,-953.33,0.0001726,2]
[369032762,1751439049155,-460.0,0.0001726,2]
[369032763,1751439049166,-460.0,0.0001726,2]
[369032764,1751439049176,-460.0,0.0001726,2]
[369032765,1751439049186,-755.62,0.0001726,2]
[369032766,1751439049197,-1411.31,0.0001726,2]
[369032767,1751439049207,-2440.16,0.0001726,2]
[369032768,1751439049218,-460.0,0.0001726,2]
[369032769,1751439049228,-496.88,0.0001726,2]
[369032770,1751439049237,-460.0,0.0001726,2]
[369032771,1751439049247,-648.56,0.0001726,2]
[369032772,1751439049256,-485.7,0.0001726,2]
[369032773,1751439049266,-460.0,0.0001726,2]
[369032774,1751439049276,-460.0,0.0001726,2]
[369032775,1751439049285,-460.0,0.0001726,2]
[369032776,1751439049295,-460.0,0.0001726,2]
[369032777,1751439049305,-1844.43,0.0001726,2]
[369032778,1751439049314,-582.39,0.0001726,2]
[369032779,1751439049324,-460.0,0.0001726,2]
[369032780,1751439049333,-460.0,0.0001726,2]
[369032781,1751439049343,-2175.98,0.0001726,2]
[369032782,1751439049352,-533.85,0.0001726,2]
[369032783,1751439049361,-808.21,0.0001726,2]
[369032784,1751439049371,-3340.84,0.0001726,2]
[369032785,1751439049380,-460.0,0.0001726,2]
[369032786,1751439049389,-488.06,0.0001726,2]
[369032787,1751439049399,-460.0,0.0001726,2]
[369032788,1751439049409,-541.27,0.0001726,2]
[369032789,1751439049418,-460.0,0.0001726,2]
[369032790,1751439049428,-4849.39,0.0001726,2]
[369032791,1751439049437,-460.0,0.0001726,2]
[369032792,1751439049447,-486.07,0.0001726,2]
[369032793,1751439049456,-3400.74,0.0001726,2]
[369032794,1751439049466,-460.0,0.0001726,2]
[369032795,1751439049475,-460.0,0.0001726,2]
[369032796,1751439049485,-1168.18,0.0001726,2]
[369032797,1751439049494,-460.0,0.0001726,2]
[369032798,1751439049504,-460.0,0.0001726,2]
[369032799,1751439049514,-529.94,0.0001726,2]
[369032800,1751439049524,-464.57,0.0001726,2]
[369032801,1751439049533,-460.0,0.0001726,2]
[369032802,1751439049543,-460.0,0.0001726,2]
[369032803,1751439049553,-916.16,0.0001726,2]
[369032804,1751439049562,-1674.93,0.0001726,2]
[369032805,1751439049572,-600.99,0.0001726,2]
[369032806,1751439049583,-460.0,0.0001726,2]
[369032807,1751439049593,-460.0,0.0001726,2]
[369032808,1751439049603,-460.0,0.0001726,2]
[369032809,1751439049612,-460.0,0.0001726,2]
[369032810,1751439049622,-460.0,0.0001726,2]
[369032811,1751439049632,-523.33,0.0001726,2]
[369032812,1751439049642,-582.40630043,0.0001726,2]
[369032813,1751439049651,-795.34,0.0001726,2]
[369032814,1751439049661,-1015.98801501,0.00017321,2]
[369032815,1751439049671,-1000.0,0.00017321,2]
[369032816,1751439049681,-1000.0,0.00017321,2]
[369032817,1751439049690,-500.1469035,0.00017321,2]
[369032818,1751439049700,-501.22139317,0.00017321,2]
[369032819,1751439049716,-1000.0,0.00017321,2]
[369032820,1751439049725,-500.90077759,0.00017321,2]
[369032821,1751439049735,-501.12856268,0.00017321,2]
[369032822,1751439049744,-500.0,0.00017342,2]
[369032823,1751439049755,-151.46578245,0.00017342,2]
[369032824,1751439049764,-151.0,0.00017342,2]
[369032825,1751439049774,-490.71279274,0.00017361,2]
[369032826,1751439049783,-500.0,0.00017369,2]
[369032827,1751439049792,-454.11756079,0.00017397,2]
[369032828,1751439049802,-1328.35073392,0.00017433,2]
[369032829,1751439049811,-460.0,0.00017531,2]
[369032830,1751439049821,-1076.71,0.00017531,2]
[369032831,1751439049831,-695.26,0.00017531,2]
[369032832,1751439049840,-460.0,0.00017531,2]
[369032833,1751439049849,-681.47,0.00017531,2]
[369032834,1751439049859,-1348.14,0.00017531,2]
[369032835,1751439049868,-460.0,0.00017531,2]
[369032836,1751439049887,-1009.74,0.00017531,2]
[369032837,1751439049906,-1610.11,0.00017531,2]
[369032838,1751439049920,-785.84,0.00017531,2]
[369032839,1751439049931,-460.0,0.00017532,2]
[369032840,1751439049941,-460.0,0.00017532,2]
[369032841,1751439049951,-538.6125136,0.00017532,2]
[369032842,1751439049960,-460.0,0.00017532,2]
[369032843,1751439049970,-516.88,0.00017532,2]
[369032844,1751439049979,-460.0,0.00017532,2]
[369032845,1751439049989,-460.0,0.00017532,2]
[369032846,1751439049998,-460.0,0.00017532,2]
[369032847,1751439050008,-460.0,0.00017532,2]
[369032848,1751439050017,-460.0,0.00017532,2]
[369032849,1751439050026,-460.0,0.00017532,2]
[369032850,1751439050035,-460.0,0.00017532,2]
[369032851,1751439050045,-460.0,0.00017534,2]
[369032852,1751439050054,-460.0,0.00017534,2]
[369032853,1751439050063,-460.0,0.00017534,2]
[369032854,1751439050073,-460.0,0.00017534,2]
[369032855,1751439050086,-501.91,0.00017534,2]
[369032856,1751439050096,-430.46080129,0.00017534,2]
[369032857,1751439050106,-460.0,0.00017534,2]
[369032858,1751439050117,-460.0,0.00017534,2]
[369032859,1751439050127,-460.0,0.00017534,2]
[369032860,1751439050136,-460.0,0.00017534,2]
[369032861,1751439050146,-460.0,0.00017534,2]
[369032862,1751439050156,-460.0,0.00017534,2]
[369032863,1751439050167,-460.0,0.00017534,2]
[369032864,1751439050177,-2466.55,0.00017534,2]
[369032865,1751439050187,-460.0,0.00017534,2]
[369032866,1751439050197,-953.33,0.00017534,2]
[369032867,1751439050207,-460.0,0.00017534,2]
[369032868,1751439050217,-460.0,0.00017534,2]
[369032869,1751439050226,-755.62,0.00017534,2]
[369032870,1751439050235,-1411.31,0.00017534,2]
[369032871,1751439050245,-2440.16,0.00017534,2]
[369032872,1751439050254,-460.0,0.00017534,2]
[369032873,1751439050264,-496.88,0.00017534,2]
[369032874,1751439050273,-648.56,0.00017534,2]
[369032875,1751439050283,-485.7,0.00017534,2]
[369032876,1751439050292,-460.0,0.00017534,2]
[369032877,1751439050302,-460.0,0.00017534,2]
[369032878,1751439050311,-460.0,0.00017534,2]
[369032879,1751439050321,-460.0,0.00017534,2]
[369032880,1751439050330,-1844.43,0.00017534,2]
[369032881,1751439050340,-582.39,0.00017534,2]
[369032882,1751439050349,-460.0,0.00017534,2]
[369032883,1751439050359,-2175.98,0.00017534,2]
[369032884,1751439050368,-460.0,0.00017534,2]
[369032885,1751439050377,-533.85,0.00017534,2]
[369032886,1751439050386,-808.21,0.00017534,2]
[369032887,1751439050396,-3340.84,0.00017534,2]
[369032888,1751439050405,-460.0,0.00017534,2]
[369032889,1751439050415,-488.06,0.00017534,2]
[369032890,1751439050424,-460.0,0.00017534,2]
[369032891,1751439050434,-541.27,0.00017534,2]
[369032892,1751439050443,-460.0,0.00017534,2]
[369032893,1751439050453,-4849.39,0.00017534,2]
[369032894,1751439050463,-460.0,0.00017534,2]
[369032895,1751439050472,-486.07,0.00017534,2]
[369032896,1751439050481,-3400.74,0.00017534,2]
[369032897,1751439050491,-460.0,0.00017534,2]
[369032898,1751439050500,-460.0,0.00017534,2]
[369032899,1751439050510,-1168.18,0.00017534,2]
[369032900,1751439050519,-460.0,0.00017534,2]
[369032901,1751439050529,-529.94,0.00017534,2]
[369032902,1751439050539,-464.57,0.00017534,2]
[369032903,1751439050548,-275.34855606,0.00017534,2]
[369032904,1751439050557,-460.0,0.00017534,2]
[369032905,1751439050567,-916.16,0.00017534,2]
[369032906,1751439050577,-1674.93,0.00017534,2]
[369032908,1751439050586,-460.0,0.00017534,2]
[369032910,1751439050595,-600.99,0.00017534,2]
[369032912,1751439050605,-460.0,0.00017534,2]
[369032914,1751439050614,-460.0,0.00017534,2]
[369032916,1751439050624,-460.0,0.00017534,2]
[369032918,1751439050633,-460.0,0.00017534,2]
[369032920,1751439050642,-523.33,0.00017534,2]
[369032921,1751439050652,-795.34,0.00017534,2]
[369032922,1751439050662,-1442.18598551,0.00017583,2]
[369032923,1751439050671,-327.0722611,0.00017805,2]
[369032927,1751439051647,-363.82313516,0.00017805,2]
[369032928,1751439051659,-385.81460374,0.00017805,2]
[369032929,1751439051669,-695.26,0.00017805,2]
[369032931,1751439051678,-681.47,0.00017805,2]
[369032933,1751439051688,-733.01881673,0.00017805,2]
[369032934,1751439192014,1932.4902259,0.00015559,2]
[369032935,1751439222283,905.928332,0.00015642,2]
[369032936,1751439261122,212.7999797,0.00015945,2]
[369032937,1751439278078,10000.0,0.00015451,2]
[369032941,1751439386059,-155.65973445,0.00016237,2]
[369032942,1751439484273,24900.0,0.00015435,2]
[369032943,1751439546053,1260.587101,0.00027397,120]
[369032945,1751439937418,9995.94009,0.000246,120]
[369032946,1751439988700,508.764246,0.00013699,2]
[369032948,1751440036156,-169.15060609,0.00016334,2]
[369032949,1751440036176,-169.15060609,0.00016336,2]
[369032950,1751440036197,-75.69878782,0.00016338,2]
[369032951,1751440045112,-93.45181827,0.00016338,2]